[Event "Open NK Rapid 2025 bord 26-50"]
[Site "Helmond, Netherlands"]
[Date "2025.05.03"]
[Round "4.17"]
[White "Kaufmann, Thomas"]
[Black "Gergin, Isafara"]
[Result "0-1"]
[TimeControl "15 min +5 sec increment"]
[WhiteFideId "1084941"]
[BlackFideId "1082167"]
[WhiteElo "1939"]
[BlackElo "1779"]

1. Nf3 {[%clk 00:15:07]} {[%emt 00:00:03]} d5 {[%clk 00:15:07]} {[%emt
00:00:03]} 2. c4 {[%clk 00:15:10]} {[%emt 00:00:01]} dxc4 {[%clk 00:15:02]}
{[%emt 00:00:11]} 3. Na3 {[%clk 00:15:13]} {[%emt 00:00:02]} Nf6 {[%clk
00:14:51]} {[%emt 00:00:16]} 4. Nxc4 {[%clk 00:15:09]} {[%emt 00:00:09]} g6
{[%clk 00:14:40]} {[%emt 00:00:16]} 5. g3 {[%clk 00:14:23]} {[%emt 00:00:50]}
Bg7 {[%clk 00:14:43]} {[%emt 00:00:03]} 6. Bg2 {[%clk 00:14:26]} O-O {[%clk
00:14:46]} {[%emt 00:00:03]} 7. d3 {[%clk 00:14:29]} {[%emt 00:00:01]} Nbd7
{[%clk 00:13:21]} {[%emt 00:01:31]} 8. O-O {[%clk 00:14:29]} {[%emt 00:00:05]}
Nb6 {[%clk 00:13:13]} {[%emt 00:00:13]} 9. Ncd2 {[%clk 00:14:00]} {[%emt
00:00:34]} c6 {[%clk 00:12:45]} {[%emt 00:00:33]} 10. Qc2 {[%clk 00:13:43]}
{[%emt 00:00:22]} h6 {[%clk 00:12:32]} {[%emt 00:00:18]} 11. b3 {[%clk
00:13:14]} {[%emt 00:00:34]} a5 {[%clk 00:12:06]} {[%emt 00:00:31]} 12. a3
{[%clk 00:12:53]} {[%emt 00:00:26]} Qc7 {[%clk 00:11:35]} {[%emt 00:00:36]} 13.
Bb2 {[%clk 00:12:49]} {[%emt 00:00:08]} Nbd5 {[%clk 00:11:06]} {[%emt
00:00:35]} 14. Rac1 {[%clk 00:12:32]} {[%emt 00:00:21]} Be6 {[%clk 00:10:37]}
{[%emt 00:00:34]} 15. Nd4 {[%clk 00:12:13]} {[%emt 00:00:24]} Bd7 {[%clk
00:10:35]} {[%emt 00:00:07]} 16. e4 {[%clk 00:11:08]} {[%emt 00:01:11]} Nb6
{[%clk 00:10:26]} {[%emt 00:00:15]} 17. N2f3 {[%clk 00:10:37]} {[%emt
00:00:35]} Ng4 {[%clk 00:09:02]} {[%emt 00:01:29]} 18. h3 {[%clk 00:09:36]}
{[%emt 00:01:05]} Ne5 {[%clk 00:08:49]} {[%emt 00:00:18]} 19. Nxe5 {[%clk
00:09:23]} {[%emt 00:00:19]} Qxe5 {[%clk 00:08:34]} {[%emt 00:00:20]} 20. f4
{[%clk 00:09:14]} {[%emt 00:00:14]} Qc7 {[%clk 00:08:31]} {[%emt 00:00:08]} 21.
Nf3 {[%clk 00:09:01]} {[%emt 00:00:18]} Qc8 {[%clk 00:08:19]} {[%emt 00:00:17]}
22. Kh2 {[%clk 00:09:01]} {[%emt 00:00:04]} Qd8 {[%clk 00:07:36]} {[%emt
00:00:48]} 23. Bxg7 {[%clk 00:08:58]} {[%emt 00:00:09]} Kxg7 {[%clk 00:07:39]}
{[%emt 00:00:02]} 24. Qc3+ {[%clk 00:08:58]} {[%emt 00:00:04]} Kh7 {[%clk
00:07:34]} {[%emt 00:00:11]} 25. Ne5 {[%clk 00:08:07]} {[%emt 00:00:56]} f6
{[%clk 00:06:56]} {[%emt 00:00:43]} 26. Nxd7 {[%clk 00:06:55]} {[%emt
00:01:16]} Qxd7 {[%clk 00:07:00]} {[%emt 00:00:02]} 27. d4 {[%clk 00:06:07]}
{[%emt 00:00:53]} Rfd8 {[%clk 00:06:49]} {[%emt 00:00:16]} 28. Rcd1 {[%clk
00:06:09]} {[%emt 00:00:03]} Qe8 {[%clk 00:05:56]} {[%emt 00:00:58]} 29. Qc5
{[%clk 00:05:39]} {[%emt 00:00:35]} Nc8 {[%clk 00:05:38]} {[%emt 00:00:22]} 30.
e5 {[%clk 00:05:37]} {[%emt 00:00:07]} Qf7 {[%clk 00:05:30]} {[%emt 00:00:14]}
31. Qc2 {[%clk 00:05:30]} {[%emt 00:00:12]} Nb6 {[%clk 00:05:05]} {[%emt
00:00:30]} 32. f5 {[%clk 00:05:23]} {[%emt 00:00:12]} g5 {[%clk 00:04:57]}
{[%emt 00:00:13]} 33. Rfe1 {[%clk 00:04:52]} {[%emt 00:00:35]} Nd5 {[%clk
00:04:47]} {[%emt 00:00:15]} 34. e6 {[%clk 00:04:20]} {[%emt 00:00:38]} Qh5
{[%clk 00:04:36]} {[%emt 00:00:16]} 35. g4 {[%clk 00:02:42]} {[%emt 00:01:42]}
Qe8 {[%clk 00:04:39]} {[%emt 00:00:02]} 36. Bxd5 {[%clk 00:02:27]} {[%emt
00:00:21]} Rxd5 {[%clk 00:04:40]} {[%emt 00:00:04]} 37. Re3 {[%clk 00:02:26]}
{[%emt 00:00:05]} Qd8 {[%clk 00:04:41]} {[%emt 00:00:05]} 38. Qb2 {[%clk
00:01:49]} {[%emt 00:00:42]} Qd6+ {[%clk 00:04:32]} {[%emt 00:00:13]} 39. Kg2
{[%clk 00:01:50]} {[%emt 00:00:04]} Rd8 {[%clk 00:04:22]} {[%emt 00:00:15]} 40.
Red3 {[%clk 00:01:11]} {[%emt 00:00:45]} Qf4 {[%clk 00:04:07]} {[%emt
00:00:20]} 41. Qf2 {[%clk 00:01:07]} {[%emt 00:00:09]} Qd6 {[%clk 00:03:17]}
{[%emt 00:00:55]} 42. Qb2 {[%clk 00:00:54]} {[%emt 00:00:17]} Kg7 {[%clk
00:03:11]} {[%emt 00:00:11]} 43. b4 {[%clk 00:00:54]} {[%emt 00:00:05]} axb4
{[%clk 00:03:11]} {[%emt 00:00:05]} 44. axb4 {[%clk 00:00:52]} {[%emt
00:00:08]} Rb5 {[%clk 00:03:00]} {[%emt 00:00:16]} 45. Rb3 {[%clk 00:00:31]}
{[%emt 00:00:26]} Qd5+ {[%clk 00:02:53]} {[%emt 00:00:11]} 46. Kf2 {[%clk
00:00:34]} {[%emt 00:00:03]} Qe4 {[%clk 00:02:32]} {[%emt 00:00:26]} 47. Qe2
{[%clk 00:00:24]} {[%emt 00:00:15]} Rxd4 {[%clk 00:01:34]} {[%emt 00:01:03]} 48.
Qxe4 {[%clk 00:00:19]} {[%emt 00:00:09]} Rxe4 {[%clk 00:01:38]} {[%emt
00:00:02]} 49. Rd7 {[%clk 00:00:22]} {[%emt 00:00:02]} Rbxb4 {[%clk 00:00:54]}
{[%emt 00:00:49]} 50. Rxe7+ {[%clk 00:00:22]} {[%emt 00:00:05]} Kf8 {[%clk
00:00:49]} {[%emt 00:00:10]} 51. Rxb7 {[%clk 00:00:17]} {[%emt 00:00:10]} Rxb3
{[%clk 00:00:28]} {[%emt 00:00:26]} 52. Rxb3 {[%clk 00:00:15]} {[%emt
00:00:06]} Ke7 {[%clk 00:00:31]} {[%emt 00:00:03]} 53. Rb7+ {[%clk 00:00:16]}
{[%emt 00:00:05]} Kd6 {[%clk 00:00:31]} {[%emt 00:00:04]} 54. Rd7+ {[%clk
00:00:19]} {[%emt 00:00:01]} Ke5 {[%clk 00:00:16]} {[%emt 00:00:22]} 55. Rh7
{[%emt 00:00:19]} 0-1

[Event "Open NK Rapid 2025 bord 26-50"]
[Site "Helmond, Netherlands"]
[Date "2025.05.03"]
[Round "4.18"]
[White "Frederiks, Jesse"]
[Black "Tetova, Amir"]
[Result "1-0"]
[TimeControl "15 min +5 sec increment"]
[WhiteFideId "1095790"]
[BlackFideId "1095838"]
[WhiteElo "1937"]
[BlackElo "1759"]

1. d4 {[%clk 00:15:07]} {[%emt 00:00:03]} Nf6 {[%clk 00:14:44]} {[%emt
00:00:26]} 2. Nf3 {[%clk 00:15:09]} {[%emt 00:00:03]} g6 {[%clk 00:14:48]} 3.
Nbd2 {[%clk 00:14:39]} {[%emt 00:00:35]} Bg7 {[%clk 00:14:53]} 4. e4 {[%clk
00:14:30]} {[%emt 00:00:13]} d6 {[%clk 00:13:18]} {[%emt 00:01:41]} 5. Bd3
{[%clk 00:14:05]} {[%emt 00:00:30]} O-O {[%clk 00:12:58]} {[%emt 00:00:25]} 6.
c3 {[%clk 00:13:42]} {[%emt 00:00:28]} Nbd7 {[%clk 00:12:57]} {[%emt 00:00:05]}
7. Qc2 {[%clk 00:13:37]} {[%emt 00:00:09]} e5 {[%clk 00:12:58]} {[%emt
00:00:05]} 8. O-O {[%clk 00:13:32]} {[%emt 00:00:10]} b6 {[%clk 00:12:54]}
{[%emt 00:00:10]} 9. Re1 {[%clk 00:13:23]} {[%emt 00:00:13]} Bb7 {[%clk
00:12:58]} {[%emt 00:00:02]} 10. Nf1 {[%clk 00:13:20]} {[%emt 00:00:08]} c5
{[%clk 00:12:08]} {[%emt 00:00:56]} 11. d5 {[%clk 00:13:10]} {[%emt 00:00:13]}
Nh5 {[%clk 00:11:50]} {[%emt 00:00:24]} 12. g3 {[%clk 00:12:32]} {[%emt
00:00:42]} f5 {[%clk 00:09:54]} {[%emt 00:02:01]} 13. Ng5 {[%clk 00:12:14]}
{[%emt 00:00:23]} Qe7 {[%clk 00:08:05]} {[%emt 00:01:54]} 14. Ne6 {[%clk
00:12:07]} {[%emt 00:00:12]} Rfc8 {[%clk 00:06:32]} {[%emt 00:01:38]} 15. c4
{[%clk 00:11:54]} {[%emt 00:00:18]} fxe4 {[%clk 00:05:41]} {[%emt 00:00:56]} 16.
Bxe4 {[%clk 00:11:55]} {[%emt 00:00:04]} Bf6 {[%clk 00:05:07]} {[%emt
00:00:40]} 17. Ne3 {[%clk 00:09:31]} {[%emt 00:02:28]} Ng7 {[%clk 00:04:20]}
{[%emt 00:00:52]} 18. Nxg7 {[%clk 00:09:32]} {[%emt 00:00:04]} Qxg7 {[%clk
00:04:14]} {[%emt 00:00:12]} 19. Ng4 {[%clk 00:09:11]} {[%emt 00:00:26]} Be7
{[%clk 00:04:12]} {[%emt 00:00:07]} 20. Bh6 {[%clk 00:09:06]} {[%emt 00:00:09]}
Qf7 {[%clk 00:04:15]} {[%emt 00:00:03]} 21. Be3 {[%clk 00:09:09]} {[%emt
00:00:02]} Bf8 {[%clk 00:03:34]} {[%emt 00:00:46]} 22. Rf1 {[%clk 00:08:34]}
{[%emt 00:00:40]} Nf6 {[%clk 00:03:20]} {[%emt 00:00:18]} 23. Nxf6+ {[%clk
00:08:34]} {[%emt 00:00:05]} Qxf6 {[%clk 00:03:24]} 24. Rae1 {[%clk 00:08:17]}
{[%emt 00:00:22]} Bg7 {[%clk 00:03:10]} {[%emt 00:00:19]} 25. b3 {[%clk
00:08:13]} {[%emt 00:00:09]} Rf8 {[%clk 00:03:14]} {[%emt 00:00:01]} 26. f4
{[%clk 00:08:11]} {[%emt 00:00:07]} Qe7 {[%clk 00:03:13]} {[%emt 00:00:07]} 27.
f5 {[%clk 00:08:05]} {[%emt 00:00:11]} g5 {[%clk 00:03:00]} {[%emt 00:00:18]}
28. Kg2 {[%clk 00:07:26]} {[%emt 00:00:43]} Bf6 {[%clk 00:03:04]} 29. Qe2
{[%clk 00:07:12]} {[%emt 00:00:19]} Qf7 {[%clk 00:03:03]} {[%emt 00:00:07]} 30.
g4 {[%clk 00:06:42]} {[%emt 00:00:35]} h6 {[%clk 00:03:04]} {[%emt 00:00:04]}
31. h4 {[%clk 00:06:23]} {[%emt 00:00:24]} Qg7 {[%clk 00:02:48]} {[%emt
00:00:21]} 32. Qd2 {[%clk 00:05:24]} {[%emt 00:01:04]} gxh4 {[%clk 00:02:10]}
{[%emt 00:00:43]} 33. Kh3 {[%clk 00:04:57]} {[%emt 00:00:32]} Bg5 {[%clk
00:02:03]} {[%emt 00:00:12]} 34. Rf3 {[%clk 00:04:17]} {[%emt 00:00:44]} Rf6
{[%clk 00:01:59]} {[%emt 00:00:09]} 35. Qe2 {[%clk 00:04:06]} {[%emt 00:00:16]}
Raf8 {[%clk 00:01:48]} {[%emt 00:00:15]} 36. Bf2 {[%clk 00:03:57]} {[%emt
00:00:15]} Kf7 {[%clk 00:01:09]} {[%emt 00:00:44]} 37. Rg1 {[%clk 00:03:52]}
{[%emt 00:00:10]} Rh8 {[%clk 00:01:02]} {[%emt 00:00:12]} 38. Rd3 {[%clk
00:03:35]} {[%emt 00:00:22]} Ke7 {[%clk 00:00:50]} {[%emt 00:00:17]} 39. Qe1
{[%clk 00:03:28]} {[%emt 00:00:13]} Qf7 {[%clk 00:00:08]} {[%emt 00:00:47]} 40.
Bxh4 {[%clk 00:03:10]} {[%emt 00:00:22]} Qg7 {[%clk 00:00:08]} {[%emt
00:00:06]} 41. Bxg5 {[%clk 00:02:36]} {[%emt 00:00:39]} hxg5+ {[%clk 00:00:10]}
{[%emt 00:00:03]} 42. Kg2 {[%clk 00:02:20]} {[%emt 00:00:21]} Rh4 {[%clk
00:00:14]} {[%emt 00:00:01]} 43. Rg3 {[%clk 00:02:08]} {[%emt 00:00:17]} Qh7
{[%clk 00:00:12]} {[%emt 00:00:07]} 44. Rh1 {[%clk 00:01:58]} {[%emt 00:00:14]}
Rxh1 {[%clk 00:00:10]} {[%emt 00:00:08]} 45. Qxh1 {[%clk 00:02:01]} {[%emt
00:00:01]} Qxh1+ {[%clk 00:00:12]} {[%emt 00:00:04]} 46. Kxh1 {[%clk 00:02:05]}
{[%emt 00:00:01]} Rh6+ {[%clk 00:00:16]} {[%emt 00:00:01]} 47. Kg2 {[%clk
00:02:03]} {[%emt 00:00:07]} Kf6 {[%clk 00:00:20]} {[%emt 00:00:01]} 48. a3
{[%clk 00:01:50]} {[%emt 00:00:17]} Ba6 {[%clk 00:00:14]} {[%emt 00:00:11]} 49.
Rh3 {[%clk 00:01:44]} {[%emt 00:00:11]} Rxh3 {[%clk 00:00:14]} {[%emt
00:00:06]} 50. Kxh3 {[%clk 00:01:48]} {[%emt 00:00:01]} b5 {[%clk 00:00:19]} 51.
cxb5 {[%clk 00:01:30]} {[%emt 00:00:23]} Bxb5 {[%clk 00:00:23]} {[%emt
00:00:01]} 52. Kg3 {[%clk 00:01:28]} {[%emt 00:00:07]} a5 {[%clk 00:00:21]}
{[%emt 00:00:07]} 53. Kf3 {[%clk 00:00:57]} {[%emt 00:00:36]} a4 {[%clk
00:00:23]} {[%emt 00:00:03]} 54. bxa4 {[%clk 00:00:57]} {[%emt 00:00:05]} Bxa4
{[%clk 00:00:27]} 55. Ke3 {[%clk 00:00:57]} {[%emt 00:00:05]} Bd1 {[%clk
00:00:28]} {[%emt 00:00:04]} 56. Bf3 {[%clk 00:00:54]} {[%emt 00:00:07]} Bb3
{[%clk 00:00:22]} {[%emt 00:00:12]} 57. Be4 {[%clk 00:00:38]} {[%emt 00:00:21]}
Ba4 {[%clk 00:00:15]} {[%emt 00:00:11]} 58. Kd2 {[%clk 00:00:34]} {[%emt
00:00:09]} Bb5 {[%clk 00:00:12]} {[%emt 00:00:10]} 59. Ke3 {[%clk 00:00:17]}
{[%emt 00:00:21]} Ba4 {[%clk 00:00:14]} {[%emt 00:00:03]} 60. Kd2 {[%clk
00:00:20]} {[%emt 00:00:02]} Bb5 {[%clk 00:00:18]} 61. Bc2 {[%clk 00:00:19]}
{[%emt 00:00:07]} Bc4 {[%clk 00:00:14]} {[%emt 00:00:09]} 62. Be4 {[%clk
00:00:20]} {[%emt 00:00:04]} Bb5 {[%clk 00:00:18]} 63. Ke3 {[%clk 00:00:11]}
{[%emt 00:00:14]} Ba4 {[%clk 00:00:19]} {[%emt 00:00:03]} 64. Bd3 {[%clk
00:00:11]} {[%emt 00:00:06]} Bd1 {[%clk 00:00:18]} {[%emt 00:00:05]} 65. Be2
{[%clk 00:00:15]} {[%emt 00:00:02]} Bb3 {[%clk 00:00:18]} {[%emt 00:00:04]} 66.
Bf3 {[%clk 00:00:15]} {[%emt 00:00:05]} Ba4 {[%clk 00:00:07]} {[%emt 00:00:17]}
67. Kd2 {[%clk 00:00:14]} {[%emt 00:00:06]} Bb5 {[%clk 00:00:09]} {[%emt
00:00:03]} 68. Be4 {[%clk 00:00:14]} {[%emt 00:00:04]} Bc4 {[%clk 00:00:12]}
{[%emt 00:00:02]} 69. a4 {[%clk 00:00:17]} {[%emt 00:00:03]} Ba6 {[%clk
00:00:12]} {[%emt 00:00:05]} 70. a5 {[%clk 00:00:20]} {[%emt 00:00:02]} Bb5
{[%clk 00:00:07]} {[%emt 00:00:10]} 71. Kc3 {[%clk 00:00:15]} {[%emt 00:00:10]}
Ba6 {[%clk 00:00:11]} 72. Bd3 {[%clk 00:00:16]} {[%emt 00:00:04]} Bb7 {[%clk
00:00:08]} {[%emt 00:00:07]} 73. a6 {[%clk 00:00:20]} Ba8 {[%clk 00:00:13]} 74.
Kc4 {[%clk 00:00:13]} {[%emt 00:00:12]} Ke7 {[%clk 00:00:08]} {[%emt 00:00:09]}
75. Bc2 {[%clk 00:00:16]} {[%emt 00:00:02]} Kf6 {[%clk 00:00:11]} {[%emt
00:00:03]} 76. Ba4 {[%clk 00:00:16]} {[%emt 00:00:05]} Ke7 {[%emt 00:00:11]} 77.
a7 {[%clk 00:00:15]} {[%emt 00:00:05]} Kd8 {[%clk 00:00:10]} {[%emt 00:00:01]}
78. Bc6 {[%clk 00:00:15]} {[%emt 00:00:04]} 1-0

[Event "Open NK Rapid 2025 bord 26-50"]
[Site "Helmond, Netherlands"]
[Date "2025.05.03"]
[Round "4.19"]
[White "Kryshtopa, Dmytro"]
[Black "Garay, Enzo"]
[Result "0-1"]
[TimeControl "15 min +5 sec increment"]
[WhiteFideId "34160876"]
[BlackFideId "40104125"]
[WhiteElo "1791"]
[BlackElo "1933"]

1. e4 {[%clk 00:12:27]} {[%emt 00:02:42]} e6 {[%clk 00:14:50]} {[%emt
00:00:20]} 2. d4 {[%clk 00:12:07]} {[%emt 00:00:25]} d5 {[%clk 00:14:53]}
{[%emt 00:00:02]} 3. e5 {[%clk 00:12:11]} {[%emt 00:00:01]} c5 {[%clk
00:14:57]} {[%emt 00:00:02]} 4. c3 {[%clk 00:12:14]} {[%emt 00:00:02]} Nc6
{[%clk 00:15:00]} {[%emt 00:00:01]} 5. Nf3 {[%clk 00:12:18]} {[%emt 00:00:02]}
Bd7 {[%clk 00:15:03]} {[%emt 00:00:02]} 6. a3 {[%clk 00:12:08]} {[%emt
00:00:15]} f6 {[%clk 00:15:06]} {[%emt 00:00:02]} 7. exf6 {[%clk 00:10:46]}
{[%emt 00:01:26]} Nxf6 {[%clk 00:15:10]} {[%emt 00:00:02]} 8. Bf4 {[%clk
00:10:42]} {[%emt 00:00:08]} cxd4 {[%clk 00:15:06]} {[%emt 00:00:09]} 9. cxd4
{[%clk 00:10:42]} {[%emt 00:00:06]} Qb6 {[%clk 00:15:07]} {[%emt 00:00:04]} 10.
b4 {[%clk 00:10:20]} {[%emt 00:00:26]} Be7 {[%clk 00:14:55]} {[%emt 00:00:17]}
11. Nc3 {[%clk 00:09:48]} {[%emt 00:00:37]} O-O {[%clk 00:14:50]} {[%emt
00:00:10]} 12. Na4 {[%clk 00:09:21]} {[%emt 00:00:33]} Qd8 {[%clk 00:14:44]}
{[%emt 00:00:10]} 13. Bd3 {[%clk 00:09:01]} {[%emt 00:00:25]} Ne4 {[%clk
00:14:40]} {[%emt 00:00:10]} 14. Bg3 {[%clk 00:08:04]} {[%emt 00:01:01]} Nxg3
{[%clk 00:14:20]} {[%emt 00:00:25]} 15. hxg3 {[%clk 00:08:07]} {[%emt
00:00:02]} h6 {[%clk 00:14:09]} {[%emt 00:00:16]} 16. Bc2 {[%clk 00:07:36]}
{[%emt 00:00:36]} Bd6 {[%clk 00:11:42]} {[%emt 00:02:32]} 17. Qd3 {[%clk
00:07:17]} {[%emt 00:00:25]} Qf6 {[%clk 00:11:45]} {[%emt 00:00:02]} 18. Qh7+
{[%clk 00:06:19]} {[%emt 00:01:03]} Kf7 {[%clk 00:11:49]} {[%emt 00:00:01]} 19.
Nc5 {[%clk 00:04:47]} {[%emt 00:01:37]} Bxc5 {[%clk 00:11:48]} {[%emt
00:00:06]} 20. bxc5 {[%clk 00:04:51]} {[%emt 00:00:01]} e5 {[%clk 00:11:40]}
{[%emt 00:00:13]} 21. Rh4 {[%clk 00:03:58]} {[%emt 00:00:57]} Rh8 {[%clk
00:10:57]} {[%emt 00:00:48]} 22. dxe5 {[%clk 00:03:27]} {[%emt 00:00:36]} Nxe5
{[%clk 00:10:59]} {[%emt 00:00:03]} 23. Rf4 {[%clk 00:02:50]} {[%emt 00:00:42]}
Nxf3+ {[%clk 00:10:27]} {[%emt 00:00:38]} 24. gxf3 {[%clk 00:02:31]} {[%emt
00:00:24]} Rxh7 {[%clk 00:10:29]} {[%emt 00:00:03]} 25. Rxf6+ {[%clk 00:02:34]}
{[%emt 00:00:02]} Kxf6 {[%clk 00:10:33]} {[%emt 00:00:01]} 26. Bxh7 {[%clk
00:02:31]} {[%emt 00:00:08]} g6 {[%clk 00:10:36]} {[%emt 00:00:01]} 27. Rd1
{[%clk 00:02:05]} {[%emt 00:00:32]} Bc6 {[%clk 00:10:39]} {[%emt 00:00:01]} 28.
Rd4 {[%clk 00:01:48]} {[%emt 00:00:22]} Re8+ {[%clk 00:10:42]} {[%emt
00:00:02]} 29. Kd2 {[%clk 00:01:45]} {[%emt 00:00:09]} Kg7 {[%clk 00:10:46]}
{[%emt 00:00:01]} 30. Bxg6 {[%clk 00:01:32]} {[%emt 00:00:18]} Kxg6 {[%clk
00:10:49]} {[%emt 00:00:02]} 31. Rg4+ {[%clk 00:01:13]} {[%emt 00:00:23]} Kh7
{[%clk 00:10:39]} {[%emt 00:00:15]} 32. Rf4 {[%clk 00:01:15]} {[%emt 00:00:03]}
a5 {[%clk 00:10:39]} {[%emt 00:00:06]} 33. Rf7+ {[%clk 00:00:39]} {[%emt
00:00:41]} Kg6 {[%clk 00:10:43]} 34. Rf4 {[%clk 00:00:43]} h5 {[%clk 00:10:43]}
{[%emt 00:00:04]} 35. g4 {[%clk 00:00:43]} {[%emt 00:00:06]} h4 {[%clk
00:10:46]} {[%emt 00:00:02]} 36. g5 {[%clk 00:00:00]} {[%emt 00:00:43]} 0-1

[Event "Open NK Rapid 2025 bord 26-50"]
[Site "Helmond, Netherlands"]
[Date "2025.05.03"]
[Round "4.20"]
[White "Zhang, Xiheng"]
[Black "Meulmeester, Luuk"]
[Result "0-1"]
[TimeControl "15 min +5 sec increment"]
[WhiteFideId "40102386"]
[BlackFideId "40111776"]
[WhiteElo "1778"]
[BlackElo "1929"]

1. e4 {[%clk 00:15:09]} {[%emt 00:01:03]} c5 {[%clk 00:15:08]} {[%emt
00:00:03]} 2. Nf3 {[%clk 00:15:13]} {[%emt 00:00:01]} Nc6 {[%clk 00:15:11]}
{[%emt 00:00:02]} 3. d4 {[%clk 00:15:15]} {[%emt 00:00:02]} cxd4 {[%clk
00:15:15]} {[%emt 00:00:01]} 4. Nxd4 {[%clk 00:15:19]} {[%emt 00:00:02]} Nf6
{[%clk 00:15:18]} {[%emt 00:00:01]} 5. Nc3 {[%clk 00:15:22]} {[%emt 00:00:02]}
e5 {[%clk 00:15:22]} {[%emt 00:00:01]} 6. Ndb5 {[%clk 00:15:26]} {[%emt
00:00:01]} d6 {[%clk 00:15:26]} {[%emt 00:00:01]} 7. Bg5 {[%clk 00:15:29]}
{[%emt 00:00:01]} Be7 {[%clk 00:15:22]} {[%emt 00:00:09]} 8. Bxf6 {[%clk
00:15:29]} {[%emt 00:00:05]} Bxf6 {[%clk 00:15:24]} {[%emt 00:00:03]} 9. Nxd6+
{[%clk 00:15:31]} {[%emt 00:00:02]} Kf8 {[%clk 00:15:21]} {[%emt 00:00:08]} 10.
Bc4 {[%clk 00:15:05]} {[%emt 00:00:31]} Be6 {[%clk 00:14:53]} {[%emt 00:00:33]}
11. Bxe6 {[%clk 00:15:02]} {[%emt 00:00:08]} fxe6 {[%clk 00:14:56]} {[%emt
00:00:02]} 12. Nxb7 {[%clk 00:14:41]} {[%emt 00:00:27]} Qb6 {[%clk 00:14:55]}
{[%emt 00:00:05]} 13. Nd6 {[%clk 00:11:04]} {[%emt 00:03:42]} Qxb2 {[%clk
00:14:40]} {[%emt 00:00:20]} 14. Na4 {[%clk 00:10:46]} {[%emt 00:00:23]} Qa3
{[%clk 00:14:08]} {[%emt 00:00:37]} 15. c4 {[%clk 00:08:08]} {[%emt 00:02:44]}
Nd4 {[%clk 00:13:03]} {[%emt 00:01:10]} 16. Nb5 {[%clk 00:06:59]} {[%emt
00:01:13]} Qb4+ {[%clk 00:12:59]} {[%emt 00:00:08]} 17. Nbc3 {[%clk 00:06:44]}
{[%emt 00:00:21]} Qxc4 {[%clk 00:12:56]} {[%emt 00:00:08]} 18. Rc1 {[%clk
00:05:28]} {[%emt 00:01:22]} Rc8 {[%clk 00:11:50]} {[%emt 00:01:10]} 19. Nb2
{[%clk 00:04:39]} {[%emt 00:00:55]} Qa6 {[%clk 00:09:48]} {[%emt 00:02:05]} 20.
Qd3 {[%clk 00:04:25]} {[%emt 00:00:19]} Qxd3 {[%clk 00:09:03]} {[%emt
00:00:51]} 21. Nxd3 {[%clk 00:04:27]} {[%emt 00:00:03]} Ke7 {[%clk 00:09:03]}
{[%emt 00:00:05]} 22. f3 {[%clk 00:03:09]} {[%emt 00:01:23]} Bg5 {[%clk
00:08:35]} {[%emt 00:00:33]} 23. f4 {[%clk 00:02:52]} {[%emt 00:00:22]} exf4
{[%clk 00:08:36]} {[%emt 00:00:04]} 24. h4 {[%clk 00:02:44]} {[%emt 00:00:12]}
Bh6 {[%clk 00:07:35]} {[%emt 00:01:07]} 25. Nd1 {[%clk 00:02:02]} {[%emt
00:00:48]} Rxc1 {[%clk 00:07:31]} {[%emt 00:00:09]} 26. Nxc1 {[%clk 00:02:06]}
f3 {[%clk 00:07:34]} {[%emt 00:00:02]} 27. Nd3 {[%clk 00:01:44]} {[%emt
00:00:27]} fxg2 {[%clk 00:07:35]} {[%emt 00:00:05]} 28. Rg1 {[%clk 00:01:37]}
{[%emt 00:00:11]} Nf3+ {[%clk 00:07:38]} {[%emt 00:00:02]} 29. Kf2 {[%clk
00:01:41]} {[%emt 00:00:01]} Nxg1 {[%clk 00:07:40]} {[%emt 00:00:03]} 30. Kxg1
{[%clk 00:01:44]} {[%emt 00:00:02]} Rd8 {[%clk 00:07:35]} {[%emt 00:00:10]} 31.
N1b2 {[%clk 00:01:43]} {[%emt 00:00:06]} Rd4 {[%clk 00:06:53]} {[%emt
00:00:46]} 32. Kxg2 {[%clk 00:01:33]} {[%emt 00:00:16]} Bc1 {[%clk 00:06:08]}
{[%emt 00:00:49]} 33. Nxc1 {[%clk 00:01:30]} {[%emt 00:00:09]} Rd2+ {[%clk
00:06:11]} {[%emt 00:00:01]} 34. Kf3 {[%clk 00:01:33]} {[%emt 00:00:04]} Rxb2
{[%clk 00:06:13]} {[%emt 00:00:02]} 35. a3 {[%clk 00:01:28]} {[%emt 00:00:10]}
Rc2 {[%clk 00:06:10]} {[%emt 00:00:07]} 36. Ne2 {[%clk 00:01:32]} {[%emt
00:00:02]} Ra2 {[%clk 00:06:13]} {[%emt 00:00:02]} 37. Nd4 {[%clk 00:01:32]}
{[%emt 00:00:04]} Rxa3+ {[%clk 00:06:16]} {[%emt 00:00:03]} 38. Kg4 {[%clk
00:01:36]} Kf6 {[%clk 00:06:12]} {[%emt 00:00:08]} 39. Nb5 {[%clk 00:01:36]}
{[%emt 00:00:06]} Ra5 {[%clk 00:06:07]} {[%emt 00:00:08]} 40. Nd6 {[%clk
00:01:39]} {[%emt 00:00:04]} h5+ {[%clk 00:06:05]} {[%emt 00:00:06]} 41. Kf4
{[%clk 00:01:39]} {[%emt 00:00:06]} e5+ {[%clk 00:05:54]} {[%emt 00:00:16]} 42.
Kf3 {[%clk 00:01:40]} {[%emt 00:00:04]} Ra3+ {[%clk 00:05:58]} {[%emt
00:00:01]} 43. Kg2 {[%clk 00:01:40]} {[%emt 00:00:05]} g5 {[%clk 00:05:55]}
{[%emt 00:00:08]} 44. hxg5+ {[%clk 00:01:40]} {[%emt 00:00:05]} Kxg5 {[%clk
00:05:57]} {[%emt 00:00:03]} 45. Nc4 {[%clk 00:01:43]} {[%emt 00:00:02]} Ra4
{[%clk 00:05:44]} {[%emt 00:00:17]} 46. Nxe5 {[%clk 00:01:46]} {[%emt
00:00:04]} Rxe4 {[%clk 00:05:47]} {[%emt 00:00:01]} 47. Nf3+ {[%clk 00:01:49]}
{[%emt 00:00:03]} Kg4 {[%clk 00:05:46]} {[%emt 00:00:05]} 48. Nh2+ {[%clk
00:01:48]} {[%emt 00:00:06]} Kf4 {[%clk 00:05:50]} {[%emt 00:00:02]} 49. Nf1
{[%clk 00:01:50]} {[%emt 00:00:02]} Re2+ {[%clk 00:05:52]} {[%emt 00:00:03]} 50.
Kg1 {[%clk 00:01:50]} {[%emt 00:00:06]} a5 {[%clk 00:05:50]} {[%emt 00:00:07]}
51. Kh1 {[%clk 00:01:42]} {[%emt 00:00:13]} Kf3 {[%clk 00:05:47]} {[%emt
00:00:08]} 52. Nh2+ {[%clk 00:01:37]} {[%emt 00:00:09]} Kg3 {[%clk 00:05:50]}
{[%emt 00:00:03]} 53. Nf1+ {[%clk 00:01:41]} Kh3 {[%clk 00:05:53]} {[%emt
00:00:01]} 54. Kg1 {[%clk 00:01:42]} {[%emt 00:00:04]} a4 {[%clk 00:05:57]}
{[%emt 00:00:02]} 55. Kh1 {[%clk 00:01:44]} {[%emt 00:00:02]} a3 {[%clk
00:05:57]} {[%emt 00:00:05]} 56. Kg1 {[%clk 00:01:47]} {[%emt 00:00:02]} a2
{[%clk 00:06:01]} {[%emt 00:00:02]} 57. Kh1 {[%clk 00:01:51]} {[%emt 00:00:01]}
a1=Q {[%clk 00:05:51]} {[%emt 00:00:14]} 58. Kg1 {[%clk 00:01:54]} {[%emt
00:00:02]} Rg2+ {[%clk 00:05:54]} {[%emt 00:00:01]} 0-1